bitfinex/quotes_BTCUSD_20250730
["timestamp","ask_amount","ask_price","bid_price","bid_amount"]
[1753887415637,0.86570166,118850.0,118830.0,0.11704]
[1753887416210,1.03745807,118850.0,118820.0,0.0844773]
[1753887416416,1.04387154,118850.0,118820.0,0.2073673]
[1753887417032,1.01307154,118850.0,118820.0,0.2105073]
[1753887417248,0.94103833,118850.0,118830.0,0.12289]
[1753887417508,0.94945166,118850.0,118830.0,0.12289]
[1753887417730,0.94103833,118850.0,118830.0,0.12289]
[1753887417927,0.95787231,118850.0,118830.0,0.12289]
[1753887418127,0.9494587,118850.0,118830.0,0.12289]
[1753887418364,0.6001739,118850.0,118820.0,0.2105073]
[1753887418602,0.9504587,118850.0,118820.0,0.2433073]
[1753887419100,0.35769968,118830.0,118810.0,5.09851348]
[1753887419330,0.36611605,118820.0,118810.0,4.97562348]
[1753887419552,0.59150178,118820.0,118810.0,4.97562348]
[1753887419779,5.93991765,118820.0,118810.0,4.97562348]
[1753887420008,5.91467032,118820.0,118810.0,4.97562348]
[1753887420235,5.93150171,118820.0,118810.0,4.97562348]
[1753887420465,5.58221684,118820.0,118810.0,4.97562348]
[1753887420689,5.58221684,118820.0,118810.0,4.97662348]
[1753887420910,5.86372032,118820.0,118810.0,4.97662348]
[1753887421368,5.83302032,118820.0,118810.0,4.97662348]
[1753887421591,0.47532,118820.0,118810.0,4.97662348]
[1753887421817,0.500623,118820.0,118810.0,4.97562348]
[1753887422317,0.501623,118820.0,118810.0,4.97562348]
[1753887422557,0.1362,118820.0,118810.0,5.10165348]
[1753887423031,0.1362,118820.0,118810.0,5.13425348]
[1753887424454,0.001,118820.0,118810.0,5.13425348]
[1753887424675,0.001,118820.0,118810.0,5.16745348]
[1753887425143,0.001,118820.0,118810.0,5.13425348]
[1753887425615,0.49876342,118830.0,118810.0,5.13425348]
[1753887425843,0.50467385,118830.0,118810.0,5.04396348]
[1753887426056,0.50467385,118830.0,118820.0,0.12289]
[1753887426268,0.50467385,118830.0,118820.0,0.12603]
[1753887426952,0.50467385,118830.0,118820.0,0.12289]
[1753887427609,0.49876186,118830.0,118820.0,0.12289]
[1753887427828,0.50467213,118830.0,118820.0,0.12289]
[1753887428014,0.36955213,118830.0,118820.0,0.12289]
[1753887428314,0.50455213,118830.0,118820.0,0.12289]
[1753887428761,0.50653213,118830.0,118820.0,0.12289]
[1753887429059,0.50653213,118830.0,118820.0,0.12493]
[1753887429923,0.50455213,118830.0,118820.0,0.12493]
[1753887430156,0.50455213,118830.0,118820.0,0.12807]
[1753887430633,0.50653213,118830.0,118820.0,0.12807]
[1753887431323,0.50455213,118830.0,118820.0,0.12807]
[1753887431819,0.50653213,118830.0,118820.0,0.12493]
[1753887433489,0.50652537,118830.0,118820.0,0.12807]
[1753887433684,0.50454537,118830.0,118820.0,0.12807]
[1753887435059,0.50653537,118830.0,118820.0,0.12807]
[1753887436531,0.50652909,118830.0,118820.0,0.12807]
[1753887437663,0.50652909,118830.0,118820.0,0.12493]
[1753887438356,0.52466843,118830.0,118820.0,0.12493]
[1753887438582,0.50652909,118830.0,118820.0,0.10789]
[1753887438808,0.95673467,118830.0,118810.0,5.04082348]
[1753887439038,0.6892848,118820.0,118810.0,5.04082348]
[1753887439358,0.50425909,118820.0,118810.0,5.04600348]
[1753887439502,0.02953909,118820.0,118810.0,5.04600348]
[1753887439712,0.16425909,118820.0,118810.0,5.04600348]
[1753887439900,0.02953909,118820.0,118810.0,5.04600348]
[1753887440645,0.02953909,118820.0,118810.0,5.16889348]
[1753887440877,0.01378654,118820.0,118810.0,5.16889348]
[1753887441090,0.02954835,118820.0,118810.0,5.16889348]
[1753887441541,0.02954835,118820.0,118810.0,5.13629348]
[1753887442229,0.02954835,118820.0,118810.0,5.10369348]
[1753887442833,0.02954835,118820.0,118810.0,5.23841348]
[1753887443999,0.02950835,118820.0,118810.0,5.23841348]
[1753887445100,0.02950835,118820.0,118810.0,5.24041348]
[1753887445337,0.02364559,118820.0,118810.0,5.24041348]
[1753887446703,0.02364559,118820.0,118810.0,5.24034975]
[1753887447884,0.01774331,118820.0,118810.0,5.24034975]
[1753887448335,0.01576331,118820.0,118810.0,5.24034975]
[1753887448569,0.01576331,118830.0,118810.0,5.86769522]
[1753887448786,0.02365876,118830.0,118820.0,0.25279913]
[1753887449006,0.01577251,118830.0,118820.0,0.72952632]
[1753887449225,0.45327251,118840.0,118820.0,0.72952632]
[1753887449465,0.46116197,118840.0,118820.0,0.61239632]
[1753887449691,0.80116197,118840.0,118830.0,0.11713]
[1753887450191,0.80116197,118840.0,118830.0,0.25397]
[1753887451350,0.80116044,118840.0,118830.0,0.25397]
[1753887453459,0.80314044,118840.0,118830.0,0.25397]
[1753887453876,0.80414044,118840.0,118830.0,0.11929]
[1753887454216,0.34841481,118830.0,118810.0,5.11023975]
[1753887454429,0.06794,118820.0,118810.0,5.11023975]
[1753887454646,0.47468,118830.0,118810.0,5.11239975]
[1753887454866,0.47468,118830.0,118820.0,0.11399]
[1753887455076,0.47667,118830.0,118820.0,0.11399]
[1753887455298,0.34199,118830.0,118820.0,0.11399]
[1753887455511,0.47667,118830.0,118820.0,0.11399]
[1753887455734,0.48455796,118830.0,118820.0,0.11399]
[1753887456423,0.47667,118830.0,118820.0,0.11615]
[1753887456552,0.47667,118830.0,118820.0,0.11929]
[1753887457213,0.47667,118830.0,118810.0,5.11337975]
[1753887457412,5.0,118820.0,118810.0,4.97555975]
[1753887457651,0.75459645,118820.0,118810.0,4.97555975]
[1753887457854,0.75702645,118820.0,118810.0,4.97555975]
[1753887458219,0.40794,118820.0,118810.0,4.97555975]
[1753887458919,0.4114263,118820.0,118810.0,4.97555975]
[1753887459126,0.40551,118820.0,118810.0,4.97555975]
[1753887459345,0.40648559,118820.0,118810.0,4.97555975]
[1753887459588,5.39807,118820.0,118810.0,4.97555975]
[1753887459822,5.40398621,118820.0,118810.0,4.97555975]
[1753887460080,6.17341346,118820.0,118810.0,4.97555975]
[1753887460325,6.08937616,118820.0,118810.0,4.97555975]
[1753887460584,6.08345995,118820.0,118810.0,4.97555975]
[1753887461314,6.10090897,118820.0,118810.0,4.97555975]
[1753887461559,6.60197054,118820.0,118810.0,4.97555975]
[1753887461724,6.68644784,118820.0,118810.0,4.97555975]
[1753887462190,5.65070632,118820.0,118810.0,4.97555975]
[1753887462404,6.13964633,118820.0,118810.0,4.97555975]
[1753887462555,6.35762264,118820.0,118810.0,4.97555975]
[1753887462767,6.34964691,118820.0,118810.0,4.97555975]
[1753887462995,6.54123111,118820.0,118810.0,4.97555975]
[1753887463210,6.62570841,118820.0,118810.0,4.97555975]
[1753887463926,1.65101441,118820.0,118810.0,4.97555975]
[1753887464146,6.65101441,118820.0,118810.0,4.97555975]
[1753887464729,6.85101441,118820.0,118810.0,4.97555975]
[1753887464881,6.85201441,118820.0,118810.0,4.97555975]
[1753887465099,6.87701441,118820.0,118810.0,4.97555975]
[1753887465305,6.80051291,118820.0,118810.0,4.97555975]
[1753887465477,5.6569384,118820.0,118810.0,4.97555975]
[1753887465691,6.00845007,118820.0,118810.0,4.97555975]
[1753887465911,6.35753652,118820.0,118810.0,4.97555975]
[1753887466114,1.71043042,118820.0,118810.0,4.97555975]
[1753887466369,6.71043042,118820.0,118810.0,4.97555975]
[1753887466598,6.7742053,118820.0,118810.0,4.97555975]
[1753887467781,6.7492053,118820.0,118810.0,5.03825975]
[1753887467987,6.7742053,118820.0,118810.0,5.03825975]
[1753887469071,6.41150397,118820.0,118810.0,5.03825975]
[1753887469292,5.65693833,118820.0,118810.0,5.03825975]
[1753887469521,5.78302021,118820.0,118810.0,5.15754975]
[1753887469786,5.18263837,118820.0,118810.0,5.15754975]
[1753887469991,5.18263837,118820.0,118810.0,5.29218975]
[1753887469992,0.001,118820.0,118810.0,5.29218975]
[1753887470443,0.341,118820.0,118810.0,5.46052574]
[1753887470649,0.001,118820.0,118810.0,5.46052574]
[1753887470865,0.001,118820.0,118810.0,5.29218975]
[1753887471795,0.38106102,118830.0,118820.0,0.065]
[1753887472016,0.38697102,118830.0,118820.0,0.31893]
[1753887473062,0.34,118830.0,118820.0,0.31893]
[1753887473274,5.175298,118840.0,118830.0,0.0608]
[1753887473486,5.67948477,118840.0,118830.0,0.18009]
[1753887473710,0.36954677,118840.0,118830.0,0.18009]
[1753887473929,0.36166763,118840.0,118830.0,0.18009]
[1753887474155,0.34,118840.0,118830.0,0.31473]
[1753887474828,0.71862847,118840.0,118830.0,0.31473]
[1753887475024,0.72062847,118840.0,118830.0,0.31473]
[1753887475456,0.71862847,118840.0,118830.0,0.31473]
[1753887475659,0.36954202,118840.0,118830.0,0.31473]
[1753887476950,0.36954129,118840.0,118830.0,0.31473]
[1753887477423,0.36166415,118840.0,118830.0,0.31473]
[1753887477850,0.36166415,118840.0,118830.0,0.18009]
[1753887478078,6.00393743,118840.0,118830.0,0.0608]
[1753887478659,5.65485098,118840.0,118830.0,0.18363]
[1753887479053,6.00393743,118840.0,118830.0,0.18363]
[1753887479252,5.65485098,118840.0,118830.0,0.18363]
[1753887480655,6.0123516,118840.0,118830.0,0.0608]
[1753887480888,6.49895514,118840.0,118830.0,0.0608]
[1753887481102,6.50736981,118840.0,118830.0,0.0608]
[1753887481311,6.50737007,118840.0,118830.0,0.0608]
[1753887481533,5.19417192,118830.0,118820.0,0.0622]
[1753887481755,6.32168679,118820.0,118810.0,5.00725975]
[1753887481976,6.92010268,118820.0,118810.0,4.97555975]
[1753887482190,7.08451268,118820.0,118810.0,4.97555975]
[1753887482595,7.02000429,118820.0,118810.0,4.97555975]
[1753887482821,7.03799586,118820.0,118810.0,5.00835975]
[1753887483025,6.92774403,118820.0,118810.0,5.00835975]
[1753887483247,6.30600309,118820.0,118810.0,5.04085975]
[1753887483471,6.21310957,118820.0,118810.0,5.16368975]
[1753887483713,6.55378036,118820.0,118810.0,5.15863975]
[1753887483923,6.57061168,118820.0,118810.0,5.15863975]
[1753887484560,6.22152523,118820.0,118810.0,5.15863975]
[1753887484773,6.74734988,118820.0,118810.0,5.04085975]
[1753887485004,6.87306586,118820.0,118810.0,5.00835975]
[1753887485429,6.87306586,118820.0,118810.0,4.97555975]
[1753887485633,6.73051856,118820.0,118810.0,4.97555975]
[1753887485856,6.73051856,118820.0,118810.0,5.00715975]
[1753887486075,6.63714856,118820.0,118810.0,5.00715975]
[1753887486339,6.19964856,118820.0,118810.0,4.97555975]
[1753887486538,6.19965019,118820.0,118810.0,4.97555975]
[1753887486956,1.19965019,118820.0,118810.0,4.97555975]
[1753887487171,6.19965019,118820.0,118810.0,4.97555975]
[1753887487377,6.19123439,118820.0,118810.0,4.97555975]
[1753887488015,5.84214794,118820.0,118810.0,4.97555975]
[1753887488229,5.84214794,118820.0,118810.0,5.16218975]
[1753887488230,0.05684877,118820.0,118810.0,5.16218975]
[1753887488444,0.02366698,118820.0,118810.0,5.16218975]
[1753887488661,0.13656,118820.0,118810.0,5.16218975]
[1753887489721,0.13456,118820.0,118810.0,5.16218975]
[1753887490411,0.13456,118820.0,118810.0,5.16418975]
[1753887490854,0.34,118830.0,118810.0,5.16418975]
[1753887491072,0.4375,118840.0,118830.0,0.23250766]
[1753887491289,0.4375,118840.0,118830.0,0.0642]
[1753887491511,0.57206,118840.0,118830.0,0.18493]
[1753887492408,0.57206,118840.0,118830.0,0.16993]
[1753887492613,0.57306,118840.0,118830.0,0.16993]
[1753887493890,0.57206,118840.0,118830.0,0.17203]
[1753887495639,0.57306,118840.0,118830.0,0.17203]
[1753887496601,0.57896691,118840.0,118830.0,0.17203]
[1753887496805,0.59471831,118840.0,118830.0,0.17203]
[1753887497022,0.57896691,118840.0,118830.0,0.17203]
[1753887497228,0.59471936,118840.0,118830.0,0.17203]
[1753887497935,0.59471967,118840.0,118830.0,0.17203]
[1753887498359,0.57306,118840.0,118830.0,0.17203]
[1753887498574,0.93543139,118840.0,118830.0,0.17203]
[1753887498794,0.93472139,118840.0,118830.0,0.17203]
[1753887499218,0.94251978,118840.0,118830.0,0.17203]
[1753887500394,0.93464139,118840.0,118830.0,0.17203]
[1753887501115,0.80016249,118840.0,118830.0,0.17203]
[1753887501327,0.93464407,118840.0,118830.0,0.17203]
[1753887502760,0.80016407,118840.0,118830.0,0.17203]
[1753887502992,0.91298,118840.0,118830.0,0.17203]
[1753887504466,0.7785,118840.0,118830.0,0.17203]
[1753887504713,0.91294,118840.0,118830.0,0.17203]
[1753887505144,0.7785,118840.0,118830.0,0.17203]
[1753887505580,0.91294,118840.0,118830.0,0.17203]
[1753887506216,0.7785,118840.0,118830.0,0.17203]
[1753887506449,0.91294,118840.0,118830.0,0.17203]
[1753887507327,0.9129,118840.0,118830.0,0.17203]
[1753887509040,0.5729,118840.0,118830.0,0.17203]
[1753887513587,0.57286,118840.0,118830.0,0.17203]
[1753887513799,0.95268773,118840.0,118830.0,0.0492]
[1753887513997,1.01504666,118840.0,118830.0,0.0492]
[1753887514433,0.60311466,118840.0,118830.0,0.0492]
[1753887514581,0.46875466,118840.0,118830.0,0.16549]
[1753887514814,0.59452573,118840.0,118830.0,0.1704]
[1753887515037,0.60240614,118840.0,118830.0,0.1704]
[1753887515799,0.6024094,118840.0,118830.0,0.1704]
[1753887515961,0.1649094,118840.0,118830.0,0.1704]
[1753887520998,0.1656194,118840.0,118830.0,0.0492]
[1753887521791,0.1649094,118840.0,118830.0,0.1704]
[1753887522215,0.16492679,118840.0,118830.0,0.1704]
[1753887522434,0.16496441,118840.0,118830.0,0.1704]
[1753887522639,0.16568472,118840.0,118830.0,0.1704]
[1753887522829,0.57761672,118840.0,118820.0,0.319]
[1753887523047,0.57761701,118840.0,118820.0,0.19976]
[1753887523265,0.57761701,118840.0,118820.0,0.0654]
[1753887523477,0.57761701,118840.0,118820.0,0.18464]
[1753887523916,0.57661701,118840.0,118820.0,0.18464]
[1753887524606,0.751932,118830.0,118820.0,0.0324]
[1753887524831,0.78225701,118830.0,118810.0,4.2175057]
[1753887525059,0.78225701,118830.0,118810.0,4.1863057]
[1753887525284,0.72777701,118830.0,118820.0,0.0325]
[1753887525506,0.72281701,118830.0,118820.0,0.0628]
[1753887525729,0.36536501,118830.0,118820.0,0.0628]
[1753887526148,0.36536138,118830.0,118820.0,0.0628]
[1753887526429,0.36536138,118830.0,118820.0,0.17909]
[1753887527075,0.36536138,118830.0,118820.0,0.18009]
[1753887527318,0.72281338,118830.0,118820.0,0.001]
[1753887527544,6.13459479,118830.0,118820.0,0.001]
[1753887527782,1.14537771,118830.0,118820.0,0.001]
[1753887528021,1.10934979,118830.0,118820.0,0.001]
[1753887528253,1.10934979,118830.0,118820.0,0.18019]
[1753887528254,5.51779147,118830.0,118820.0,0.18019]
[1753887528482,0.49889138,118830.0,118820.0,0.1841]
[1753887528723,0.02961138,118830.0,118820.0,0.1841]
[1753887528946,0.16385138,118830.0,118820.0,0.541552]
[1753887529167,0.16385138,118830.0,118820.0,0.1841]
[1753887529384,0.16456138,118830.0,118820.0,0.1841]
[1753887530044,0.02961138,118830.0,118820.0,0.1841]
[1753887530260,0.16385138,118830.0,118820.0,0.1841]
[1753887530469,0.16485138,118830.0,118820.0,0.1841]
[1753887531164,0.16483627,118830.0,118820.0,0.1841]
[1753887531630,0.1648362,118830.0,118820.0,0.1841]
[1753887531883,0.0305962,118830.0,118820.0,0.1841]
[1753887532092,0.1352,118830.0,118820.0,0.79435113]
[1753887532337,0.001,118830.0,118820.0,0.82801448]
[1753887534127,0.001,118830.0,118820.0,0.46214689]
[1753887534356,0.02665977,118850.0,118820.0,0.76511462]
[1753887534581,0.03257398,118850.0,118840.0,0.0649]
[1753887534770,0.03257398,118850.0,118840.0,0.06686]
[1753887535014,0.03257398,118850.0,118840.0,0.1861]
[1753887535465,0.03328398,118850.0,118840.0,0.1861]
[1753887535679,0.39073598,118850.0,118840.0,0.1342]
[1753887536109,0.39073598,118850.0,118830.0,0.31549]
[1753887536295,0.03328398,118850.0,118830.0,0.31549]
[1753887539283,0.39073598,118850.0,118830.0,0.31549]
[1753887539954,0.03328398,118850.0,118840.0,0.18199]
[1753887540172,0.66669398,118850.0,118840.0,0.18199]
[1753887540397,0.53257398,118850.0,118840.0,0.539442]
[1753887540624,0.03257398,118850.0,118840.0,0.539442]
[1753887541065,0.03257398,118850.0,118840.0,0.673562]
[1753887542472,0.03257398,118850.0,118840.0,0.31611]
[1753887543349,0.03256807,118850.0,118840.0,0.31611]
[1753887543564,0.03256807,118850.0,118840.0,0.18199]
[1753887543812,0.03327807,118850.0,118830.0,0.31555]
[1753887544443,0.03327807,118850.0,118830.0,0.20067]
[1753887544654,0.03327807,118850.0,118840.0,0.11488]
[1753887545527,0.39073007,118850.0,118830.0,0.31555]
[1753887545926,0.39072792,118850.0,118830.0,0.31555]
[1753887546140,0.03327592,118850.0,118830.0,0.31555]
[1753887546594,0.03326705,118850.0,118830.0,0.31555]
[1753887546815,0.03326705,118850.0,118840.0,0.11488]
[1753887547035,0.03326705,118850.0,118840.0,0.11793]
[1753887548174,0.03326705,118850.0,118840.0,0.11989]
[1753887548393,0.003,118850.0,118840.0,0.79411646]
[1753887548603,0.003,118850.0,118840.0,0.80042747]
[1753887548816,0.003,118850.0,118840.0,0.82567078]
[1753887549050,0.003,118850.0,118840.0,0.83408495]
[1753887549264,0.003,118850.0,118840.0,0.82567078]
[1753887549465,0.003,118850.0,118840.0,0.83408495]
[1753887549874,0.003,118850.0,118840.0,0.82567078]
[1753887550128,0.003,118850.0,118840.0,0.83408453]
[1753887551843,0.003,118850.0,118840.0,0.80884179]
[1753887552090,0.003,118850.0,118840.0,0.4345608]
[1753887552294,0.003,118850.0,118840.0,0.93446733]
[1753887552506,0.003,118850.0,118840.0,0.9260528]
[1753887552742,0.003,118850.0,118840.0,0.93846747]
[1753887553386,0.003,118850.0,118840.0,0.946882]
[1753887553801,0.003,118850.0,118840.0,0.93846747]
[1753887554013,0.003,118850.0,118840.0,0.2702673]
[1753887554222,0.003,118850.0,118840.0,0.31983]
[1753887555299,0.00371,118850.0,118840.0,0.12389]
[1753887555529,0.00371,118850.0,118840.0,0.138]
[1753887555758,0.00371,118850.0,118840.0,0.004]
[1753887555977,0.00371,118850.0,118840.0,0.11888]
[1753887556378,0.00371,118850.0,118840.0,0.11488]
[1753887556744,0.00371,118850.0,118840.0,0.11993]
[1753887557372,0.00371,118850.0,118840.0,0.11688]
[1753887558125,0.00961567,118850.0,118840.0,0.002]
[1753887558343,0.0174933,118850.0,118840.0,0.002]
[1753887558551,0.03324856,118850.0,118840.0,0.002]
[1753887558957,0.03324856,118850.0,118840.0,0.11688]
[1753887559452,0.03324856,118850.0,118840.0,0.11993]
[1753887561085,0.03324856,118850.0,118840.0,0.12189]
[1753887561895,0.03253856,118850.0,118840.0,0.542142]
[1753887562225,0.003,118850.0,118840.0,0.18469]
[1753887562440,0.003,118850.0,118840.0,0.31865]
[1753887566966,0.00371,118850.0,118840.0,0.11993]
[1753887567179,0.734262,118850.0,118840.0,0.13592]
[1753887567394,0.73072416,118850.0,118840.0,0.2535]
[1753887567550,0.73072416,118850.0,118840.0,0.12155]
[1753887567762,0.37256216,118850.0,118840.0,0.18725]
[1753887569370,0.343,118850.0,118840.0,0.18725]
[1753887570234,0.3489129,118850.0,118840.0,0.18725]
[1753887570451,0.0089129,118850.0,118840.0,0.18725]
[1753887571523,0.01679659,118850.0,118840.0,0.18725]
[1753887571706,0.03256418,118850.0,118840.0,0.18725]
[1753887574281,0.01679723,118850.0,118840.0,0.18725]
[1753887575333,0.01750723,118850.0,118840.0,0.15435]
[1753887575538,0.03327595,118850.0,118840.0,0.18755366]
[1753887575762,0.03256595,118850.0,118840.0,0.18545]
[1753887576181,0.03256767,118850.0,118840.0,0.18545]
[1753887576601,0.03256767,118850.0,118840.0,0.542902]
[1753887577042,0.003,118850.0,118840.0,0.7956728]
[1753887577893,0.003,118850.0,118840.0,0.80408733]
[1753887578114,0.003,118850.0,118840.0,0.81250172]
[1753887578325,0.003,118850.0,118840.0,0.82091604]
[1753887578708,0.003,118850.0,118840.0,0.82933021]
[1753887578928,0.003,118850.0,118840.0,0.82933029]
[1753887579119,0.003,118850.0,118840.0,0.82091604]
[1753887579680,0.003,118850.0,118840.0,0.81250179]
[1753887579890,0.003,118850.0,118840.0,0.82091618]
[1753887580486,0.003,118850.0,118840.0,0.81250179]
[1753887580715,0.003,118850.0,118840.0,0.81250165]
[1753887580882,0.003,118850.0,118840.0,0.44663547]
[1753887581083,0.003,118850.0,118840.0,0.81250193]
[1753887581492,0.003,118850.0,118840.0,0.82091618]
[1753887581990,0.003,118850.0,118840.0,0.45505]
[1753887582180,0.003,118850.0,118840.0,0.812502]
[1753887582499,0.003,118850.0,118840.0,1.19519702]
[1753887583770,0.003,118850.0,118840.0,1.53519702]
[1753887584621,0.003,118850.0,118840.0,1.53319702]
[1753887585036,0.003,118850.0,118840.0,1.56439029]
[1753887585909,0.003,118850.0,118840.0,1.58183931]
[1753887586126,0.01903442,118870.0,118860.0,0.25569648]
[1753887586336,0.03600977,118880.0,118870.0,0.59678782]
[1753887586545,0.03600977,118880.0,118870.0,1.53293135]
[1753887586768,0.03600977,118880.0,118870.0,1.69188814]
[1753887587459,0.03600977,118880.0,118870.0,1.6752095]
[1753887587663,0.03600977,118880.0,118870.0,1.49854599]
[1753887587881,0.03600977,118880.0,118870.0,1.50054599]
[1753887588101,0.03600977,118880.0,118870.0,0.96492497]
[1753887588327,0.03600977,118880.0,118870.0,1.09860497]
[1753887588536,0.03600977,118880.0,118870.0,1.10160497]
[1753887588746,0.03600977,118880.0,118870.0,0.96492497]
[1753887588964,0.03600977,118880.0,118870.0,0.75860497]
[1753887589185,0.03806977,118880.0,118870.0,0.20105297]
[1753887589404,0.39859177,118880.0,118870.0,0.08462297]
[1753887589658,0.51242469,118880.0,118870.0,0.08462297]
[1753887591145,0.48082469,118880.0,118870.0,0.08462297]
[1753887591379,0.04191269,118880.0,118870.0,0.2031561]
[1753887591608,0.04191269,118880.0,118870.0,0.20417297]
[1753887591818,0.04191269,118880.0,118870.0,0.59392497]
[1753887592032,0.03600977,118880.0,118870.0,0.80218855]
[1753887592285,0.03600977,118880.0,118870.0,0.8021884]
[1753887592498,0.03600977,118880.0,118870.0,0.793776]
[1753887592698,0.03600977,118880.0,118870.0,0.81060088]
[1753887592914,0.03600977,118880.0,118870.0,0.81867997]
[1753887595349,0.03352977,118880.0,118870.0,0.81867997]
[1753887595548,0.03352977,118880.0,118870.0,0.81967997]
[1753887596113,0.03352977,118880.0,118870.0,0.95327997]
[1753887596453,0.03352977,118880.0,118870.0,0.81967997]
[1753887596664,0.03352977,118880.0,118870.0,0.95327997]
[1753887598944,0.03352977,118880.0,118870.0,0.81967997]
[1753887599164,0.03352977,118880.0,118870.0,0.95323997]
[1753887599692,0.03352977,118880.0,118870.0,0.81967997]
[1753887600209,0.03352977,118880.0,118870.0,0.95323997]
[1753887600449,0.03352977,118880.0,118870.0,0.92163997]
[1753887600658,0.03352977,118880.0,118870.0,0.95313997]
[1753887600872,0.03352977,118880.0,118870.0,1.29313997]
[1753887601082,0.03352977,118880.0,118870.0,1.33558899]
[1753887602550,0.03352977,118880.0,118870.0,1.36058899]
[1753887603395,0.03348977,118880.0,118870.0,1.36058899]
[1753887604310,0.20389662,118900.0,118890.0,0.59645527]
[1753887604519,0.20979492,118900.0,118890.0,1.29847837]
[1753887605419,0.20979492,118900.0,118890.0,1.32347837]
[1753887605626,0.20389662,118900.0,118890.0,1.32347837]
[1753887605842,0.20389662,118900.0,118890.0,0.47855159]
[1753887606055,0.20979561,118900.0,118890.0,1.14740935]
[1753887606274,0.20979561,118900.0,118890.0,1.29833837]
[1753887606725,0.21079561,118900.0,118890.0,1.32333837]
[1753887607160,0.20489662,118900.0,118890.0,1.32333837]
[1753887608015,0.20389662,118900.0,118890.0,1.32333837]
[1753887608232,0.20389662,118900.0,118890.0,1.32633837]
[1753887609297,0.20389662,118900.0,118890.0,1.70004515]
[1753887609507,0.20389662,118900.0,118890.0,1.72572891]
[1753887609924,0.20389662,118900.0,118890.0,1.72272891]
[1753887610128,0.20389662,118900.0,118890.0,1.34898213]
[1753887610338,0.20389662,118900.0,118890.0,1.37398213]
[1753887610339,0.16258702,118900.0,118890.0,1.37398213]
[1753887610573,0.16258702,118900.0,118890.0,1.34898213]
[1753887611012,0.16258702,118900.0,118890.0,1.37498213]
[1753887611279,0.00352652,118910.0,118890.0,1.37498213]
[1753887611489,0.00352652,118910.0,118900.0,1.75914712]
[1753887611702,0.00352652,118910.0,118900.0,1.87491452]
[1753887611925,1e-08,118930.0,118920.0,0.64717366]
[1753887612133,1e-08,118930.0,118920.0,0.89211096]
[1753887612358,1e-08,118930.0,118920.0,0.87452096]
[1753887612622,1e-08,118930.0,118920.0,1.00792096]
[1753887613262,1e-08,118930.0,118920.0,1.05577033]
[1753887613478,1e-08,118930.0,118920.0,1.03283934]
[1753887613684,1e-08,118930.0,118920.0,1.00840666]
[1753887613868,1e-08,118930.0,118920.0,1.03283934]
[1753887614316,1e-08,118930.0,118920.0,1.24886897]
[1753887614546,1e-08,118930.0,118920.0,1.27330165]
[1753887614964,1e-08,118930.0,118920.0,1.25037066]
[1753887615188,1e-08,118930.0,118920.0,1.25537066]
[1753887615400,1e-08,118930.0,118920.0,1.61830165]
[1753887615838,1e-08,118930.0,118920.0,1.48794165]
[1753887616054,0.00203001,118930.0,118920.0,0.82149078]
[1753887616279,0.00203001,118930.0,118920.0,1.26959756]
[1753887616507,0.00203001,118930.0,118920.0,1.23669756]
[1753887616715,1e-08,118930.0,118920.0,1.27459756]
[1753887616942,1e-08,118930.0,118920.0,1.30469756]
[1753887617156,1e-08,118930.0,118920.0,1.32214658]
[1753887617328,1e-08,118930.0,118920.0,1.30665526]
[1753887617827,0.00203001,118930.0,118920.0,1.27141526]
[1753887618049,0.00203001,118930.0,118920.0,0.88990848]
[1753887618278,0.00203001,118930.0,118920.0,0.77713848]
[1753887618488,0.00203001,118930.0,118920.0,0.87245946]
[1753887618701,0.00203001,118930.0,118920.0,1.22116624]
[1753887618882,0.00203001,118930.0,118920.0,0.86945946]
[1753887619123,0.00203001,118930.0,118920.0,1.23561526]
[1753887619332,0.00203001,118930.0,118920.0,1.10739624]
[1753887620618,0.00203001,118930.0,118920.0,0.86645946]
[1753887620829,0.00203001,118930.0,118920.0,1.21512624]
[1753887621035,0.00203001,118930.0,118920.0,0.87041946]
[1753887621249,0.00203001,118930.0,118920.0,0.616259]
[1753887621464,0.07967001,118930.0,118920.0,0.090963]
[1753887621676,0.11027001,118930.0,118920.0,0.25914328]
[1753887621882,0.11027001,118930.0,118920.0,0.26755222]
[1753887622100,0.11027001,118930.0,118920.0,0.39242328]
[1753887622288,0.11027001,118930.0,118920.0,0.40083229]
[1753887622737,0.00203001,118930.0,118920.0,0.42605847]
[1753887622968,0.03313001,118930.0,118920.0,0.41764996]
[1753887623174,0.03313001,118930.0,118920.0,0.42605862]
[1753887623388,0.03313001,118930.0,118920.0,0.4136501]
[1753887623606,0.03313001,118930.0,118920.0,0.4220589]
[1753887623819,0.03313001,118930.0,118920.0,0.29718713]
[1753887623964,0.03313001,118930.0,118920.0,0.43346713]
[1753887624404,0.03313001,118930.0,118920.0,0.43146713]
[1753887624740,0.00203001,118930.0,118920.0,0.43146721]
[1753887624952,0.45897679,118930.0,118920.0,0.088963]
[1753887625168,0.46007114,118930.0,118920.0,0.222643]
[1753887625375,0.11136436,118930.0,118920.0,0.222643]
[1753887625514,0.13299461,118930.0,118920.0,0.222643]
[1753887625739,0.14086026,118930.0,118920.0,0.221643]
[1753887625919,0.14086026,118930.0,118920.0,0.087963]
[1753887626127,0.49797471,118930.0,118920.0,0.222443]
[1753887626372,0.49797478,118930.0,118920.0,0.1379657]
[1753887626804,0.14086026,118930.0,118920.0,0.1379657]
[1753887627332,0.14086026,118930.0,118920.0,0.1349657]
[1753887627542,1.03371596,118930.0,118920.0,0.0024857]
[1753887627729,0.91340343,118910.0,118900.0,0.003]
[1753887627965,0.949294,118910.0,118900.0,0.00348648]
[1753887628164,6.01518201,118910.0,118900.0,0.00348648]
[1753887628301,6.00623277,118910.0,118900.0,0.00348648]
[1753887628503,5.83857815,118910.0,118900.0,0.00348648]
[1753887628705,0.48092045,118910.0,118900.0,0.00348648]
[1753887628906,0.47305187,118910.0,118900.0,0.00348648]
[1753887629104,0.80853035,118910.0,118900.0,0.00348648]
[1753887629350,5.99890271,118910.0,118900.0,0.00348648]
[1753887629505,6.01463794,118910.0,118900.0,0.00348648]
[1753887629886,6.15622858,118910.0,118900.0,0.00348648]
[1753887630087,5.8075218,118910.0,118900.0,1e-08]
[1753887630290,5.97962457,118910.0,118900.0,1e-08]
[1753887630529,0.47305062,118910.0,118900.0,1e-08]
[1753887630734,0.07391539,118910.0,118900.0,1e-08]
[1753887631132,0.07001435,118910.0,118900.0,0.08447731]
[1753887631351,0.07001435,118910.0,118900.0,0.07257561]
[1753887631564,0.06569435,118900.0,118890.0,0.09582556]